[Event "Western Asian Juniors Chess-ch 2023"]
[Site "Colombo"]
[Date "2023.12.04"]
[Round "8.8"]
[White "Manon, Reja Neer"]
[Black "Kulathilake, S M M P"]
[Result "1/2-1/2"]
[ECO "C15"]
[WhiteElo "2207"]
[BlackElo "1583"]
[Annotator "RC"]
[PlyCount "53"]
[EventDate "2023.11.30"]
[EventCountry "SRI"]
[SourceTitle "playchess.com"]
[Source "ChessBase"]
[SourceQuality "1"]
[TimeControl "5400+30"]

1. e4 {[%emt 0:01:54]} e6 {[%emt 0:00:10]} 2. d4 {[%emt 0:00:10]} d5 {[%emt 0:00:06]} 3. Nc3 {[%emt 0:00:13]} Bb4 {[%emt 0:00:08]} 4. Nge2 {[%emt 0:00:06]} dxe4 {[%emt 0:02:16]} 5. a3 {[%emt 0:00:00]} Be7 {[%emt 0:00:43]} 6. Nxe4 {[%emt 0:00:55]} Nf6 {[%emt 0:00:12]} 7. Nxf6+ {[%emt 0:06:02]} Bxf6 {[%emt 0:00:13]} 8. g3 {[%emt 0:00:41]} Bd7 {[%emt 0:03:53]} 9. Be3 {[%emt 0:05:31]} Bc6 {[%emt 0:08:18]} 10. Rg1 {[%emt 0:00:04]} Nd7 {[%emt 0:00:20]} 11. c4 {[%emt 0:00:58]} Nb6 {[%emt 0:03:39]} 12. Nc3 {[%emt 0:04:02]} Qd7 {[%emt 0:01:14]} 13. Qd3 {[%emt 0:07:38]} Rd8 {[%emt 0:04:17]} 14. O-O-O {[%emt 0:03:19]} Na4 {[%emt 0:02:40]} 15. Ne4 {[%emt 0:26:31]} Bxe4 {[%emt 0:02:39]} 16. Qxe4 {[%emt 0:03:59]} c5 {[%emt 0:00:33]} 17. g4 {[%emt 0:11:52]} Bxd4 {[%emt 0:02:07]} 18. Bxd4 {[%emt 0:00:01]} cxd4 {[%emt 0:00:01]} 19. Bg2 {[%emt 0:00:01]} b6 {[%emt 0:05:09]} 20. Qc6 {[%emt 0:01:00]} O-O {[%emt 0:01:19]} 21. Kc2 {[%emt 0:11:53]} Qxc6 {[%emt 0:08:40]} 22. Bxc6 {[%emt 0:00:22]} Nc5 {[%emt 0:00:02]} 23. b4 {[%emt 0:00:46]} Na6 {[%emt 0:00:07]} 24. f4 {[%emt 0:03:48]} Nc7 {[%emt 0:02:43]} 25. Rd3 {[%emt 0:02:18]} f6 {[%emt 0:00:15]} 26. Re1 {[%emt 0:02:21]} Rd6 {[%emt 0:00:30]} 27. Bf3 {[%emt 0:00:45]} 1/2-1/2

[Event "Western Asian Juniors Chess-ch 2023"]
[Site "Colombo"]
[Date "2023.12.05"]
[Round "9.1"]
[White "Thilakarathne, G M H"]
[Black "De Silva, L M S T"]
[Result "1-0"]
[ECO "D00"]
[WhiteElo "2389"]
[BlackElo "2394"]
[Annotator "RC"]
[PlyCount "137"]
[EventDate "2023.11.30"]
[EventCountry "SRI"]
[SourceTitle "playchess.com"]
[Source "ChessBase"]
[SourceQuality "1"]
[TimeControl "5400+30"]

1. d4 {[%emt 0:00:36]} Nf6 {[%emt 0:00:08]} 2. Bg5 {[%emt 0:00:03]} d5 {[%emt 0:03:33]} 3. Bxf6 {[%emt 0:00:49]} exf6 {[%emt 0:01:06]} 4. e3 {[%emt 0:00:30]} Bd6 {[%emt 0:01:03]} 5. g3 {[%emt 0:00:45]} O-O {[%emt 0:01:56]} 6. Bg2 {[%emt 0:00:28]} c6 {[%emt 0:00:27]} 7. Ne2 {[%emt 0:00:14]} Bf5 {[%emt 0:01:43]} 8. Nd2 {[%emt 0:04:15]} Qd7 {[%emt 0:11:14]} 9. O-O {[%emt 0:05:59]} Bh3 {[%emt 0:03:46]} 10. Bxh3 {[%emt 0:01:32]} Qxh3 {[%emt 0:00:03]} 11. c4 {[%emt 0:00:25]} dxc4 {[%emt 0:05:49]} 12. Nxc4 {[%emt 0:00:37]} Bc7 {[%emt 0:00:49]} 13. Nc3 {[%emt 0:13:07]} Nd7 {[%emt 0:03:25]} 14. Qf3 {[%emt 0:03:20]} Rfd8 {[%emt 0:09:56]} 15. b4 {[%emt 0:32:30]} Qe6 {[%emt 0:03:42]} 16. Nd2 {[%emt 0:11:09]} Rac8 {[%emt 0:20:53]} 17. Rfc1 {[%emt 0:05:02]} Bd6 {[%emt 0:09:02]} 18. a3 {[%emt 0:03:41]} f5 {[%emt 0:00:58]} 19. Na4 {[%emt 0:01:05]} g6 {[%emt 0:01:35]} 20. Rc2 {[%emt 0:02:54]} Nf6 {[%emt 0:03:03]} 21. Nc5 {[%emt 0:04:04]} Qe7 {[%emt 0:00:59]} 22. Rb1 {[%emt 0:01:36]} Nd5 {[%emt 0:02:53]} 23. Kg2 {[%emt 0:01:18]} Bxc5 {[%emt 0:05:58]} 24. Rxc5 {[%emt 0:01:40]} Nc7 {[%emt 0:00:53]} 25. h4 {[%emt 0:01:27]} Rd5 {[%emt 0:01:54]} 26. a4 {[%emt 0:00:36]} Rcd8 {[%emt 0:00:58]} 27. Nb3 {[%emt 0:01:23]} Ne6 {[%emt 0:01:33]} 28. Rxd5 {[%emt 0:00:55]} Rxd5 {[%emt 0:00:01]} 29. Na5 {[%emt 0:00:15]} Qc7 {[%emt 0:01:43]} 30. Nc4 {[%emt 0:00:38]} a6 {[%emt 0:00:18]} 31. Ne5 {[%emt 0:00:30]} h5 {[%emt 0:00:39]} 32. Rb2 {[%emt 0:01:48]} Kg7 {[%emt 0:00:23]} 33. Nd3 {[%emt 0:00:26]} Qd7 {[%emt 0:00:41]} 34. Nc1 {[%emt 0:00:22]} Nc7 {[%emt 0:01:19]} 35. Ne2 {[%emt 0:00:25]} Rd6 {[%emt 0:00:10]} 36. Nf4 {[%emt 0:00:29]} Ne6 {[%emt 0:00:46]} 37. Nd3 {[%emt 0:00:29]} Rd5 {[%emt 0:00:01]} 38. Ne5 {[%emt 0:00:12]} Qc7 {[%emt 0:00:14]} 39. Kh2 {[%emt 0:00:29]} Kg8 {[%emt 0:01:10]} 40. Qe2 {[%emt 0:00:56]} Kg7 {[%emt 0:00:46]} 41. Qc4 {[%emt 0:00:11]} Qd6 {[%emt 0:00:39]} 42. Nd3 {[%emt 0:01:18]} Kg8 {[%emt 0:00:41]} 43. Qc3 {[%emt 0:00:23]} Kh7 {[%emt 0:01:24]} 44. Nc1 {[%emt 0:00:25]} g5 {[%emt 0:01:38]} 45. hxg5 {[%emt 0:00:16]} Nxg5 {[%emt 0:00:08]} 46. Nd3 {[%emt 0:00:20]} h4 {[%emt 0:00:47]} 47. Nf4 {[%emt 0:00:17]} Qh6 {[%emt 0:00:36]} 48. Kg2 {[%emt 0:00:23]} Rd6 {[%emt 0:00:35]} 49. Qd3 {[%emt 0:00:12]} Rf6 {[%emt 0:00:24]} 50. Qe2 {[%emt 0:00:22]} Ne6 {[%emt 0:00:29]} 51. Nxe6 {[%emt 0:01:06]} fxe6 {[%emt 0:00:01]} 52. Rb1 {[%emt 0:00:13]} Qg5 {[%emt 0:00:46]} 53. Rh1 {[%emt 0:00:19]} Rh6 {[%emt 0:00:01]} 54. Qf3 {[%emt 0:02:04]} Kg6 {[%emt 0:00:19]} 55. Rh3 {[%emt 0:00:29]} Rh7 {[%emt 0:00:58]} 56. e4 {[%emt 0:00:38]} Kf6 {[%emt 0:00:48]} 57. exf5 {[%emt 0:00:09]} exf5 {[%emt 0:00:08]} 58. d5 {[%emt 0:00:05]} cxd5 {[%emt 0:00:58]} 59. Qxd5 {[%emt 0:00:02]} f4 {[%emt 0:00:39]} 60. Qxg5+ {[%emt 0:00:25]} Kxg5 {[%emt 0:00:03]} 61. Rxh4 {[%emt 0:00:12]} Rxh4 {[%emt 0:00:54]} 62. gxh4+ {[%emt 0:00:02]} Kg4 {[%emt 0:00:16]} 63. h5 {[%emt 0:00:11]} Kxh5 {[%emt 0:00:15]} 64. Kf3 {[%emt 0:00:06]} a5 {[%emt 0:00:32]} 65. bxa5 {[%emt 0:00:46]} Kg5 {[%emt 0:00:09]} 66. Ke4 {[%emt 0:00:14]} Kg4 {[%emt 0:00:04]} 67. f3+ {[%emt 0:00:10]} Kg3 {[%emt 0:00:10]} 68. a6 {[%emt 0:00:06]} bxa6 {[%emt 0:00:03]} 69. a5 {[%emt 0:00:04]} 1-0

[Event "Western Asian Juniors Chess-ch 2023"]
[Site "Colombo"]
[Date "2023.12.05"]
[Round "9.2"]
[White "Raahul V S"]
[Black "Harshavardhan G B"]
[Result "1/2-1/2"]
[ECO "A46"]
[WhiteElo "2350"]
[BlackElo "2390"]
[Annotator "RC"]
[PlyCount "180"]
[EventDate "2023.11.30"]
[EventCountry "SRI"]
[SourceTitle "playchess.com"]
[Source "ChessBase"]
[SourceQuality "1"]
[TimeControl "5400+30"]

1. d4 {[%emt 0:02:57]} Nf6 {[%emt 0:00:16]} 2. Bf4 {[%emt 0:00:13]} e6 {[%emt 0:00:31]} 3. e3 {[%emt 0:00:06]} c5 {[%emt 0:00:09]} 4. Nf3 {[%emt 0:00:12]} Nc6 {[%emt 0:00:10]} 5. Nbd2 {[%emt 0:00:54]} h6 {[%emt 0:00:10]} 6. Bg3 {[%emt 0:06:28]} Nh5 {[%emt 0:03:45]} 7. Bd3 {[%emt 0:08:32]} Nxg3 {[%emt 0:00:44]} 8. hxg3 {[%emt 0:00:04]} d5 {[%emt 0:00:14]} 9. c3 {[%emt 0:00:22]} Qb6 {[%emt 0:00:07]} 10. Qc2 {[%emt 0:01:01]} Bd7 {[%emt 0:03:29]} 11. g4 {[%emt 0:02:52]} Rc8 {[%emt 0:12:53]} 12. Qb3 {[%emt 0:00:56]} g6 {[%emt 0:07:52]} 13. Qxb6 {[%emt 0:28:50]} axb6 {[%emt 0:00:15]} 14. Bb5 {[%emt 0:00:12]} Bg7 {[%emt 0:01:38]} 15. Nb3 {[%emt 0:01:28]} Na5 {[%emt 0:12:19]} 16. Bxd7+ {[%emt 0:07:45]} Kxd7 {[%emt 0:00:09]} 17. Nxa5 {[%emt 0:00:09]} bxa5 {[%emt 0:00:18]} 18. Ne5+ {[%emt 0:00:05]} Ke7 {[%emt 0:03:02]} 19. f4 {[%emt 0:01:50]} g5 {[%emt 0:01:45]} 20. g3 {[%emt 0:02:14]} cxd4 {[%emt 0:04:23]} 21. exd4 {[%emt 0:01:13]} gxf4 {[%emt 0:00:09]} 22. gxf4 {[%emt 0:03:06]} Bxe5 {[%emt 0:00:09]} 23. fxe5 {[%emt 0:00:08]} Rcg8 {[%emt 0:00:12]} 24. Rh4 {[%emt 0:00:39]} h5 {[%emt 0:00:21]} 25. Kf2 {[%emt 0:00:04]} Rxg4 {[%emt 0:03:49]} 26. Rxg4 {[%emt 0:00:07]} hxg4 {[%emt 0:00:10]} 27. Kg3 {[%emt 0:00:01]} f5 {[%emt 0:02:32]} 28. exf6+ {[%emt 0:00:47]} Kxf6 {[%emt 0:00:14]} 29. Kxg4 {[%emt 0:03:14]} Rh2 {[%emt 0:00:24]} 30. Rf1+ {[%emt 0:02:03]} Ke7 {[%emt 0:00:44]} 31. Rb1 {[%emt 0:00:03]} b5 {[%emt 0:00:42]} 32. Kf4 {[%emt 0:04:44]} Rh3 {[%emt 0:01:36]} 33. Rg1 {[%emt 0:01:31]} Kd6 {[%emt 0:03:05]} 34. a3 {[%emt 0:07:31]} b4 {[%emt 0:07:44]} 35. cxb4 {[%emt 0:01:48]} axb4 {[%emt 0:00:34]} 36. Rg3 {[%emt 0:00:49]} Rh2 {[%emt 0:00:12]} 37. axb4 {[%emt 0:00:55]} Rxb2 {[%emt 0:00:16]} 38. Ke3 {[%emt 0:04:45]} Rb3+ {[%emt 0:01:16]} 39. Kf2 {[%emt 0:00:02]} Rxb4 {[%emt 0:00:32]} 40. Rd3 {[%emt 0:00:04]} Ke7 {[%emt 0:00:26]} 41. Ke3 {[%emt 0:00:23]} Kf6 {[%emt 0:00:10]} 42. Rd1 {[%emt 0:00:07]} Rb3+ {[%emt 0:00:09]} 43. Kd2 {[%emt 0:00:06]} Rf3 {[%emt 0:00:22]} 44. Re1 {[%emt 0:00:16]} Ke7 {[%emt 0:00:06]} 45. Ra1 {[%emt 0:00:34]} Rh3 {[%emt 0:00:16]} 46. Rf1 {[%emt 0:00:29]} Rh5 {[%emt 0:00:21]} 47. Kd3 {[%emt 0:00:16]} Rf5 {[%emt 0:00:07]} 48. Ra1 {[%emt 0:00:13]} Kf7 {[%emt 0:00:31]} 49. Rh1 {[%emt 0:00:16]} Kg6 {[%emt 0:00:05]} 50. Rg1+ {[%emt 0:00:19]} Kh5 {[%emt 0:00:17]} 51. Re1 {[%emt 0:00:15]} Rf3+ {[%emt 0:00:15]} 52. Kd2 {[%emt 0:00:03]} Rf6 {[%emt 0:00:08]} 53. Re5+ {[%emt 0:00:04]} Kg6 {[%emt 0:04:45]} 54. Kd3 {[%emt 0:00:15]} Kf7 {[%emt 0:00:07]} 55. Re1 {[%emt 0:00:21]} Rh6 {[%emt 0:00:07]} 56. Rf1+ {[%emt 0:00:31]} Ke7 {[%emt 0:00:07]} 57. Ra1 {[%emt 0:00:09]} Rh3+ {[%emt 0:00:11]} 58. Kd2 {[%emt 0:00:05]} Rb3 {[%emt 0:00:06]} 59. Rf1 {[%emt 0:00:51]} Ra3 {[%emt 0:00:07]} 60. Rh1 {[%emt 0:00:28]} Kd6 {[%emt 0:00:08]} 61. Re1 {[%emt 0:00:28]} Rg3 {[%emt 0:00:09]} 62. Kc2 {[%emt 0:00:16]} Rg6 {[%emt 0:00:36]} 63. Kd3 {[%emt 0:00:08]} Rh6 {[%emt 0:00:06]} 64. Rc1 {[%emt 0:00:25]} Rh3+ {[%emt 0:00:06]} 65. Kd2 {[%emt 0:00:03]} Rh4 {[%emt 0:00:07]} 66. Kd3 {[%emt 0:00:04]} Re4 {[%emt 0:00:06]} 67. Ra1 {[%emt 0:00:20]} Kc6 {[%emt 0:00:18]} 68. Rc1+ {[%emt 0:00:11]} Kd7 {[%emt 0:00:19]} 69. Ra1 {[%emt 0:00:06]} Kd6 {[%emt 0:00:05]} 70. Rc1 {[%emt 0:00:03]} Rg4 {[%emt 0:00:07]} 71. Re1 {[%emt 0:00:08]} Rg8 {[%emt 0:00:16]} 72. Kd2 {[%emt 0:00:18]} Ke7 {[%emt 0:00:06]} 73. Kd3 {[%emt 0:00:07]} Rh8 {[%emt 0:00:07]} 74. Rf1 {[%emt 0:00:39]} Re8 {[%emt 0:00:13]} 75. Ra1 {[%emt 0:00:11]} Kf6 {[%emt 0:00:06]} 76. Rf1+ {[%emt 0:00:02]} Kg5 {[%emt 0:00:07]} 77. Re1 {[%emt 0:00:05]} Kf6 {[%emt 0:00:29]} 78. Rf1+ {[%emt 0:00:04]} Ke7 {[%emt 0:00:06]} 79. Ra1 {[%emt 0:00:06]} Rh8 {[%emt 0:00:05]} 80. Rf1 {[%emt 0:00:13]} Rh6 {[%emt 0:00:04]} 81. Ra1 {[%emt 0:00:35]} Kf6 {[%emt 0:00:05]} 82. Rf1+ {[%emt 0:00:15]} Kg5 {[%emt 0:00:21]} 83. Re1 {[%emt 0:00:05]} Kf4 {[%emt 0:00:06]} 84. Re5 {[%emt 0:00:17]} Kf3 {[%emt 0:00:06]} 85. Re3+ {[%emt 0:00:03]} Kf2 {[%emt 0:00:06]} 86. Re2+ {[%emt 0:00:04]} Kf1 {[%emt 0:00:06]} 87. Re5 {[%emt 0:00:06]} Rf6 {[%emt 0:00:08]} 88. Kd2 {[%emt 0:00:11]} Kf2 {[%emt 0:00:25]} 89. Re2+ {[%emt 0:00:06]} Kg3 {[%emt 0:00:06]} 90. Re3+ {[%emt 0:00:06]} Kg2 {[%emt 0:00:26]} 1/2-1/2

[Event "Western Asian Juniors Chess-ch 2023"]
[Site "Colombo"]
[Date "2023.12.05"]
[Round "9.3"]
[White "Orozbaev, Eldiar"]
[Black "Mazhkenov, Alisher"]
[Result "1-0"]
[ECO "C15"]
[WhiteElo "2278"]
[BlackElo "2105"]
[Annotator "RC"]
[PlyCount "61"]
[EventDate "2023.11.30"]
[EventCountry "SRI"]
[SourceTitle "playchess.com"]
[Source "ChessBase"]
[SourceQuality "1"]
[TimeControl "5400+30"]

1. e4 {[%emt 0:06:07]} Nc6 {[%emt 0:01:42]} 2. Nc3 {[%emt 0:01:46]} e6 {[%emt 0:01:10]} 3. d4 {[%emt 0:01:28]} Bb4 {[%emt 0:01:13]} 4. Qd3 {[%emt 0:00:06]} d5 {[%emt 0:05:04]} 5. e5 {[%emt 0:00:40]} f6 {[%emt 0:05:59]} 6. a3 {[%emt 0:06:58]} Bxc3+ {[%emt 0:09:27]} 7. Qxc3 {[%emt 0:00:07]} fxe5 {[%emt 0:01:23]} 8. dxe5 {[%emt 0:00:03]} Nge7 {[%emt 0:00:40]} 9. f4 {[%emt 0:00:23]} Qd7 {[%emt 0:06:30]} 10. Nf3 {[%emt 0:01:13]} b6 {[%emt 0:01:12]} 11. b4 {[%emt 0:02:23]} Bb7 {[%emt 0:04:26]} 12. b5 {[%emt 0:00:36]} Na5 {[%emt 0:01:50]} 13. Nd4 {[%emt 0:01:32]} Nc4 {[%emt 0:04:53]} 14. Be2 {[%emt 0:00:23]} c5 {[%emt 0:02:16]} 15. bxc6 {[%emt 0:00:25]} Nxc6 {[%emt 0:00:36]} 16. O-O {[%emt 0:01:46]} O-O {[%emt 0:07:20]} 17. Nf3 {[%emt 0:00:44]} Ne7 {[%emt 0:07:02]} 18. Qe1 {[%emt 0:00:14]} Rac8 {[%emt 0:02:28]} 19. Bd3 {[%emt 0:00:15]} h6 {[%emt 0:00:59]} 20. Nd4 {[%emt 0:00:54]} Nc6 {[%emt 0:02:28]} 21. Nxc6 {[%emt 0:01:33]} Bxc6 {[%emt 0:01:32]} 22. Qg3 {[%emt 0:00:07]} Qe8 {[%emt 0:06:15]} 23. Bg6 {[%emt 0:01:32]} Qe7 {[%emt 0:07:44]} 24. Bd3 {[%emt 0:00:12]} Qe8 {[%emt 0:02:18]} 25. f5 {[%emt 0:01:28]} exf5 {[%emt 0:00:31]} 26. Bxf5 {[%emt 0:00:13]} Bd7 {[%emt 0:03:59]} 27. Bxh6 {[%emt 0:01:00]} Rf7 {[%emt 0:04:35]} 28. Bg6 {[%emt 0:00:12]} Rxf1+ {[%emt 0:00:19]} 29. Rxf1 {[%emt 0:00:30]} Qxe5 {[%emt 0:00:52]} 30. Bf7+ {[%emt 0:00:00]} Kh8 {[%emt 0:01:08]} 31. Qh4 {[%emt 0:09:52]} 1-0

[Event "Western Asian Juniors Chess-ch 2023"]
[Site "Colombo"]
[Date "2023.12.05"]
[Round "9.4"]
[White "Ankit Ray"]
[Black "Liyanage, Ranindu Dilshan"]
[Result "1/2-1/2"]
[ECO "A46"]
[WhiteElo "1902"]
[BlackElo "2400"]
[Annotator "RC"]
[PlyCount "67"]
[EventDate "2023.11.30"]
[EventCountry "SRI"]
[SourceTitle "playchess.com"]
[Source "ChessBase"]
[SourceQuality "1"]
[TimeControl "5400+30"]

1. Nf3 {[%emt 0:01:09]} Nf6 {[%emt 0:02:31]} 2. g3 {[%emt 0:00:21]} b5 {[%emt 0:00:30]} 3. Bg2 {[%emt 0:00:26]} Bb7 {[%emt 0:00:07]} 4. d4 {[%emt 0:00:19]} e6 {[%emt 0:00:16]} 5. O-O {[%emt 0:00:18]} Be7 {[%emt 0:01:00]} 6. Bg5 {[%emt 0:00:34]} c5 {[%emt 0:01:53]} 7. c3 {[%emt 0:03:35]} cxd4 {[%emt 0:03:38]} 8. Nxd4 {[%emt 0:00:11]} Bxg2 {[%emt 0:00:59]} 9. Kxg2 {[%emt 0:00:07]} Qb6 {[%emt 0:00:27]} 10. Qd3 {[%emt 0:04:39]} a6 {[%emt 0:01:37]} 11. Nd2 {[%emt 0:02:44]} d6 {[%emt 0:02:15]} 12. Qf3 {[%emt 0:08:24]} Ra7 {[%emt 0:05:02]} 13. a4 {[%emt 0:00:26]} Rc7 {[%emt 0:11:41]} 14. axb5 {[%emt 0:08:17]} axb5 {[%emt 0:01:13]} 15. Qd3 {[%emt 0:00:14]} Rb7 {[%emt 0:02:45]} 16. b4 {[%emt 0:03:01]} h6 {[%emt 0:11:11]} 17. Bxf6 {[%emt 0:05:17]} Bxf6 {[%emt 0:00:44]} 18. N2f3 {[%emt 0:00:22]} Nc6 {[%emt 0:12:04]} 19. Ra8+ {[%emt 0:03:05]} Bd8 {[%emt 0:01:10]} 20. Rfa1 {[%emt 0:07:38]} Na7 {[%emt 0:02:41]} 21. Qd2 {[%emt 0:02:29]} Qc7 {[%emt 0:04:38]} 22. Ra6 {[%emt 0:16:49]} O-O {[%emt 0:04:41]} 23. Qa2 {[%emt 0:00:47]} e5 {[%emt 0:00:05]} 24. R8xa7 {[%emt 0:04:31]} exd4 {[%emt 0:00:08]} 25. cxd4 {[%emt 0:00:08]} Rxa7 {[%emt 0:00:58]} 26. Rxa7 {[%emt 0:00:10]} Qc3 {[%emt 0:00:21]} 27. Qd2 {[%emt 0:02:09]} Qc4 {[%emt 0:00:51]} 28. Ra2 {[%emt 0:00:57]} Bb6 {[%emt 0:01:55]} 29. Rc2 {[%emt 0:00:39]} Qd5 {[%emt 0:00:05]} 30. Qc3 {[%emt 0:00:13]} Bd8 {[%emt 0:02:44]} 31. Qc6 {[%emt 0:00:38]} Qb3 {[%emt 0:00:05]} 32. Qc3 {[%emt 0:00:08]} Qd5 {[%emt 0:00:06]} 33. Qc6 {[%emt 0:00:19]} Qb3 {[%emt 0:00:16]} 34. Qc3 {[%emt 0:00:02]} 1/2-1/2

[Event "Western Asian Juniors Chess-ch 2023"]
[Site "Colombo"]
[Date "2023.12.05"]
[Round "9.5"]
[White "Hommadov, Amanmuhammet"]
[Black "Senevirathne, S D B K"]
[Result "1-0"]
[ECO "C84"]
[WhiteElo "2055"]
[BlackElo "1802"]
[Annotator "NA RC"]
[PlyCount "73"]
[EventDate "2023.11.30"]
[EventCountry "SRI"]
[SourceTitle "playchess.com"]
[Source "ChessBase"]
[SourceQuality "1"]
[TimeControl "5400+30"]

1. e4 {[%emt 0:00:30]} e5 {[%emt 0:00:30]} 2. Nf3 {[%emt 0:00:30]} Nc6 {[%emt 0:00:30]} 3. Bb5 {[%emt 0:00:30]} a6 {[%emt 0:00:30]} 4. Ba4 {[%emt 0:00:30]} Nf6 {[%emt 0:00:30]} 5. O-O {[%emt 0:00:30]} Nxe4 {[%emt 0:00:30]} 6. d4 {[%emt 0:00:00]} Be7 {[%emt 0:00:00]} 7. Qe2 {[%emt 0:00:00]} b5 {[%emt 0:01:16]} 8. Bb3 {[%emt 0:00:00]} d5 {[%emt 0:00:42]} 9. dxe5 {[%emt 0:00:00]} Na5 {[%emt 0:03:43]} 10. Rd1 {[%emt 0:00:00]} Be6 {[%emt 0:09:28]} 11. Nd4 {[%emt 0:04:58]} c5 {[%emt 0:03:03]} 12. Nf5 {[%emt 0:14:47]} Bf8 {[%emt 0:18:55]} 13. Bxd5 {[%emt 0:00:20]} Bxd5 {[%emt 0:00:48]} 14. Ne3 {[%emt 0:00:02]} Bb7 {[%emt 0:14:14]} 15. Rxd8+ {[%emt 0:00:08]} Rxd8 {[%emt 0:00:05]} 16. Nc3 {[%emt 0:10:18]} Ng5 {[%emt 0:02:00]} 17. Nc4 {[%emt 0:03:28]} Nh3+ {[%emt 0:01:53]} 18. gxh3 {[%emt 0:00:02]} Nxc4 {[%emt 0:00:10]} 19. b3 {[%emt 0:00:07]} Nb6 {[%emt 0:00:48]} 20. Bg5 {[%emt 0:00:05]} Rd4 {[%emt 0:00:51]} 21. Nxb5 {[%emt 0:01:10]} axb5 {[%emt 0:04:32]} 22. Qxb5+ {[%emt 0:00:01]} Rd7 {[%emt 0:00:15]} 23. Qxb6 {[%emt 0:01:17]} h6 {[%emt 0:00:19]} 24. e6 {[%emt 0:13:00]} fxe6 {[%emt 0:00:16]} 25. Qxe6+ {[%emt 0:00:02]} Be7 {[%emt 0:00:12]} 26. Bxe7 {[%emt 0:00:05]} Rxe7 {[%emt 0:00:04]} 27. Qg6+ {[%emt 0:00:05]} Kd8 {[%emt 0:00:35]} 28. Rd1+ {[%emt 0:00:19]} Kc8 {[%emt 0:00:12]} 29. Qf5+ {[%emt 0:00:27]} Kb8 {[%emt 0:00:14]} 30. Qxc5 {[%emt 0:00:09]} Rhe8 {[%emt 0:00:06]} 31. Qd6+ {[%emt 0:01:44]} Ka8 {[%emt 0:00:25]} 32. Qd2 {[%emt 0:00:10]} Re6 {[%emt 0:00:11]} 33. Qa5+ {[%emt 0:00:11]} Kb8 {[%emt 0:00:17]} 34. Rd8+ {[%emt 0:00:07]} Rxd8 {[%emt 0:00:05]} 35. Qxd8+ {[%emt 0:00:06]} Ka7 {[%emt 0:00:07]} 36. f3 {[%emt 0:00:20]} Bxf3 {[%emt 0:00:24]} 37. Qd7+ {[%emt 0:00:01]} 1-0

[Event "Western Asian Juniors Chess-ch 2023"]
[Site "Colombo"]
[Date "2023.12.05"]
[Round "9.6"]
[White "Samaranayake, Pamok Methdinu"]
[Black "Manon, Reja Neer"]
[Result "0-1"]
[ECO "D00"]
[WhiteElo "1720"]
[BlackElo "2207"]
[Annotator "RC"]
[PlyCount "56"]
[EventDate "2023.11.30"]
[EventCountry "SRI"]
[SourceTitle "playchess.com"]
[Source "ChessBase"]
[SourceQuality "1"]
[TimeControl "5400+30"]

1. d4 Nf6 2. Nc3 {[%emt 0:01:29]} d5 {[%emt 0:04:51]} 3. Bf4 {[%emt 0:00:06]} g6 {[%emt 0:02:05]} 4. e3 {[%emt 0:00:11]} Bg7 {[%emt 0:00:15]} 5. h4 {[%emt 0:00:06]} a6 {[%emt 0:01:40]} 6. Bd3 {[%emt 0:00:51]} c5 {[%emt 0:07:30]} 7. Nf3 {[%emt 0:17:33]} Bg4 {[%emt 0:03:03]} 8. Be2 {[%emt 0:02:06]} Nc6 {[%emt 0:11:28]} 9. Be5 {[%emt 0:07:12]} e6 {[%emt 0:05:24]} 10. Ng5 {[%emt 0:00:30]} Bxe2 {[%emt 0:00:30]} 11. Qxe2 {[%emt 0:00:30]} h6 {[%emt 0:00:30]} 12. Nf3 {[%emt 0:00:30]} O-O {[%emt 0:00:30]} 13. O-O-O {[%emt 0:25:45]} b5 {[%emt 0:20:34]} 14. Rdg1 {[%emt 0:08:20]} Qa5 {[%emt 0:00:30]} 15. g4 {[%emt 0:00:30]} cxd4 {[%emt 0:18:32]} 16. exd4 {[%emt 0:00:30]} b4 {[%emt 0:00:30]} 17. Nb1 {[%emt 0:00:30]} Ne4 {[%emt 0:00:30]} 18. Bxg7 {[%emt 0:00:30]} Kxg7 {[%emt 0:00:30]} 19. Qe3 {[%emt 0:04:03]} Qxa2 {[%emt 0:21:08]} 20. h5 {[%emt 0:08:05]} g5 {[%emt 0:00:00]} 21. Nxg5 {[%emt 0:03:31]} Nxg5 {[%emt 0:00:00]} 22. f4 {[%emt 0:00:20]} Ne4 {[%emt 0:00:00]} 23. g5 {[%emt 0:03:05]} Na5 {[%emt 0:00:00]} 24. gxh6+ {[%emt 0:00:30]} Kh8 {[%emt 0:00:00]} 25. Nd2 {[%emt 0:05:26]} Qa1+ {[%emt 0:00:00]} 26. Nb1 {[%emt 0:00:05]} Nc4 {[%emt 0:03:30]} 27. Qb3 {[%emt 0:01:13]} Ncd2 {[%emt 0:00:00]} 28. Qd3 {[%emt 0:00:23]} Qxb1# {[%emt 0:00:00]} 0-1

[Event "Western Asian Juniors Chess-ch 2023"]
[Site "Colombo"]
[Date "2023.12.05"]
[Round "9.7"]
[White "Halynyazow, Vepaly"]
[Black "Janukshan, B."]
[Result "1/2-1/2"]
[ECO "D87"]
[WhiteElo "2020"]
[BlackElo "1635"]
[Annotator "NA RC"]
[PlyCount "75"]
[EventDate "2023.11.30"]
[EventCountry "SRI"]
[SourceTitle "playchess.com"]
[Source "ChessBase"]
[SourceQuality "1"]
[TimeControl "5400+30"]

1. d4 {[%emt 0:00:00]} Nf6 {[%emt 0:01:22]} 2. c4 {[%emt 0:00:00]} g6 {[%emt 0:00:30]} 3. Nc3 d5 4. cxd5 {[%emt 0:00:20]} Nxd5 {[%emt 0:00:37]} 5. e4 {[%emt 0:00:05]} Nxc3 {[%emt 0:00:11]} 6. bxc3 {[%emt 0:00:06]} Bg7 {[%emt 0:01:40]} 7. Bc4 {[%emt 0:00:09]} c5 {[%emt 0:02:30]} 8. Be3 {[%emt 0:00:16]} Qa5 {[%emt 0:13:28]} 9. Qd2 {[%emt 0:04:05]} cxd4 {[%emt 0:04:55]} 10. cxd4 {[%emt 0:00:08]} Qxd2+ {[%emt 0:01:47]} 11. Kxd2 {[%emt 0:00:10]} O-O {[%emt 0:03:27]} 12. Ne2 {[%emt 0:01:41]} Nc6 {[%emt 1:06:03]} 13. Rhd1 {[%emt 0:00:10]} Rd8 {[%emt 0:00:00]} 14. Ke1 {[%emt 0:00:09]} e6 {[%emt 0:00:00]} 15. Rac1 {[%emt 1:30:41]} Bd7 {[%emt 0:00:00]} 16. f3 {[%emt 0:00:00]} Na5 {[%emt 0:00:00]} 17. Bd3 {[%emt 0:00:00]} Rac8 {[%emt 0:00:00]} 18. Rxc8 {[%emt 0:00:00]} Rxc8 {[%emt 0:00:00]} 19. Rc1 {[%emt 0:00:00]} Rxc1+ {[%emt 0:00:00]} 20. Nxc1 {[%emt 0:00:00]} Kf8 {[%emt 0:00:00]} 21. g4 {[%emt 0:00:00]} Nc6 {[%emt 0:00:00]} 22. Nb3 {[%emt 0:00:00]} b6 {[%emt 0:00:00]} 23. g5 {[%emt 0:00:00]} Nb4 {[%emt 0:00:00]} 24. Bb1 {[%emt 0:00:00]} Ba4 {[%emt 0:00:00]} 25. Kd2 {[%emt 0:00:00]} Bxb3 {[%emt 0:00:00]} 26. axb3 {[%emt 0:00:00]} Ke8 {[%emt 0:00:00]} 27. Kc3 {[%emt 0:00:00]} Bf8 {[%emt 0:00:00]} 28. Bd3 {[%emt 0:00:00]} Nxd3 {[%emt 0:00:00]} 29. Kxd3 {[%emt 0:00:00]} b5 {[%emt 0:00:00]} 30. Bd2 {[%emt 0:00:00]} Kd7 {[%emt 0:00:03]} 31. d5 {[%emt 0:00:00]} exd5 {[%emt 0:03:35]} 32. exd5 {[%emt 0:00:00]} Bd6 {[%emt 0:00:54]} 33. h3 {[%emt 0:00:00]} Ke7 {[%emt 0:01:17]} 34. Kd4 {[%emt 0:00:00]} Kd7 {[%emt 0:00:15]} 35. Kd3 {[%emt 0:00:00]} Ke7 {[%emt 0:00:20]} 36. Kd4 {[%emt 0:00:00]} Kd7 {[%emt 0:00:05]} 37. Kd3 {[%emt 0:00:00]} Ke7 {[%emt 0:00:17]} 38. Ke4 {[%emt 0:00:00]} 1/2-1/2